bitfinex/quotes_BTCUSD_20240731
["timestamp","ask_amount","ask_price","bid_price","bid_amount"]
[1722418794265,1.31322495,66429.0,66428.0,0.028]
[1722418794467,1.01215195,66429.0,66428.0,0.028]
[1722418794665,1.01310086,66429.0,66428.0,0.028]
[1722418794845,0.979882,66429.0,66428.0,0.028]
[1722418795259,1.01231078,66429.0,66428.0,0.028]
[1722418795494,0.979882,66429.0,66428.0,0.028]
[1722418801331,1.0120308,66429.0,66428.0,0.028]
[1722418801940,1.44854546,66429.0,66428.0,0.028]
[1722418802729,1.3131038,66429.0,66428.0,0.028]
[1722418802924,1.0120308,66429.0,66428.0,0.028]
[1722418803125,1.14748094,66429.0,66428.0,0.028]
[1722418803543,1.0120308,66429.0,66428.0,0.028]
[1722418803917,1.14747793,66429.0,66428.0,0.028]
[1722418804479,1.14769895,66429.0,66428.0,0.028]
[1722418805249,1.01225499,66429.0,66428.0,0.028]
[1722418805454,1.14769463,66429.0,66428.0,0.028]
[1722418805619,1.01225499,66429.0,66428.0,0.028]
[1722418805816,1.31332799,66429.0,66428.0,0.028]
[1722418806044,1.01225499,66429.0,66428.0,0.028]
[1722418806378,1.31332799,66429.0,66428.0,0.028]
[1722418807667,1.31346431,66429.0,66428.0,0.028]
[1722418807864,1.31346431,66429.0,66428.0,0.014]
[1722418808347,1.053818,66425.0,66424.0,0.000913]
[1722418808473,1.31282731,66425.0,66424.0,0.000913]
[1722418811001,1.280318,66425.0,66424.0,0.013913]
[1722418811203,1.31283297,66425.0,66424.0,0.013913]
[1722418811408,1.31273203,66425.0,66424.0,0.013913]
[1722418812908,1.44807273,66425.0,66424.0,0.013913]
[1722418813252,1.44807363,66425.0,66424.0,0.013913]
[1722418814418,1.280318,66425.0,66424.0,0.013913]
[1722418814779,1.44766424,66425.0,66424.0,0.013913]
[1722418815223,1.62343757,66425.0,66424.0,0.013913]
[1722418815425,1.77566995,66425.0,66424.0,0.013913]
[1722418815633,1.62343757,66425.0,66424.0,0.013913]
[1722418816573,1.77559336,66425.0,66424.0,0.013913]
[1722418816750,1.62343757,66425.0,66424.0,0.013913]
[1722418817910,1.93430568,66425.0,66424.0,0.013913]
[1722418818311,2.08638044,66425.0,66424.0,0.013913]
[1722418819309,2.08638044,66425.0,66413.0,0.000913]
[1722418819310,1.053993,66414.0,66413.0,0.000913]
[1722418819548,1.39522194,66414.0,66413.0,0.000913]
[1722418820162,1.282593,66414.0,66413.0,0.000913]
[1722418820533,1.282593,66414.0,66413.0,0.014913]
[1722418820926,1.37267609,66414.0,66413.0,0.014913]
[1722418821250,1.283593,66414.0,66413.0,0.028913]
[1722418821409,1.197293,66414.0,66413.0,0.028913]
[1722418821619,1.283593,66414.0,66413.0,0.028913]
[1722418822330,1.37364554,66414.0,66413.0,0.028913]
[1722418822781,1.37364679,66414.0,66413.0,0.028913]
[1722418823200,1.283593,66414.0,66413.0,0.028913]
[1722418823745,1.37363751,66414.0,66413.0,0.028913]
[1722418823975,1.37365083,66414.0,66413.0,0.028913]
[1722418824587,1.37364598,66414.0,66413.0,0.028913]
[1722418825373,1.283593,66414.0,66413.0,0.028913]
[1722418825569,1.37364598,66414.0,66413.0,0.028913]
[1722418826005,1.201693,66414.0,66413.0,0.028913]
[1722418826212,1.29174598,66414.0,66413.0,0.028913]
[1722418826414,1.201693,66414.0,66413.0,0.028913]
[1722418828007,1.26922116,66414.0,66413.0,0.028913]
[1722418828980,1.23441729,66414.0,66413.0,0.028913]
[1722418829181,1.32445484,66414.0,66413.0,0.028913]
[1722418829591,1.24338652,66414.0,66413.0,0.028913]
[1722418830197,1.35593346,66414.0,66413.0,0.014913]
[1722418830399,1.33341713,66414.0,66413.0,0.014913]
[1722418830613,1.33441713,66414.0,66413.0,0.028913]
[1722418831215,1.24438652,66414.0,66413.0,0.028913]
[1722418831414,1.24431792,66414.0,66413.0,0.028913]
[1722418832053,1.33334993,66414.0,66413.0,0.014913]
[1722418832252,1.33334993,66414.0,66413.0,0.028913]
[1722418832253,1.33434993,66414.0,66413.0,0.028913]
[1722418833103,1.33435021,66414.0,66413.0,0.028913]
[1722418833240,1.73797849,66414.0,66413.0,0.028913]
[1722418833442,1.6479462,66414.0,66413.0,0.028913]
[1722418834347,1.6469462,66414.0,66413.0,0.014913]
[1722418834644,1.6469462,66414.0,66413.0,0.015913]
[1722418834828,1.64690216,66414.0,66413.0,0.015913]
[1722418835028,1.7819348,66414.0,66413.0,0.015913]
[1722418835273,1.64690216,66414.0,66413.0,0.015913]
[1722418835680,1.64590216,66414.0,66413.0,0.001913]
[1722418835855,1.62631488,66414.0,66413.0,0.001913]
[1722418836058,1.62731488,66414.0,66413.0,0.000913]
[1722418836291,1.76234752,66414.0,66413.0,0.000913]
[1722418836473,1.62831488,66414.0,66413.0,0.000913]
[1722418836676,1.76334752,66414.0,66413.0,0.000913]
[1722418838228,1.62831488,66414.0,66413.0,0.000913]
[1722418838438,1.76334203,66414.0,66413.0,0.000913]
[1722418839264,1.62831488,66414.0,66413.0,0.000913]
[1722418840056,1.6281292,66414.0,66413.0,0.000913]
[1722418840842,1.84617119,66414.0,66413.0,0.000913]
[1722418840991,1.192937,66405.0,66404.0,0.000913]
[1722418841194,1.72536399,66405.0,66404.0,0.000913]
[1722418841790,1.42429756,66405.0,66404.0,0.000913]
[1722418841991,1.31179047,66405.0,66404.0,0.000913]
[1722418842582,1.31279047,66405.0,66404.0,0.010913]
[1722418843231,1.31379047,66405.0,66404.0,0.019913]
[1722418844522,1.61497247,66405.0,66404.0,0.019913]
[1722418844888,1.61494472,66405.0,66404.0,0.019913]
[1722418845293,1.31376272,66405.0,66404.0,0.019913]
[1722418845850,1.23686272,66405.0,66404.0,0.019913]
[1722418848603,1.23650149,66405.0,66404.0,0.019913]
[1722418849787,1.24558919,66405.0,66404.0,0.019913]
[1722418849970,1.15928919,66405.0,66404.0,0.019913]
[1722418850175,1.24558919,66405.0,66404.0,0.019913]
[1722418851490,1.2134247,66405.0,66404.0,0.019913]
[1722418851797,1.24462132,66405.0,66404.0,0.019913]
[1722418852020,1.09642132,66405.0,66404.0,0.102613]
[1722418852233,0.58407024,66405.0,66404.0,0.25324604]
[1722418852434,0.2479787,66405.0,66404.0,0.25324604]
[1722418852632,0.2479787,66405.0,66404.0,0.31324604]
[1722418852633,0.1649102,66405.0,66404.0,0.31324604]
[1722418852791,0.3155012,66405.0,66404.0,0.31324604]
[1722418852995,0.1649102,66405.0,66404.0,0.31324604]
[1722418853188,0.0973877,66405.0,66404.0,0.31324604]
[1722418853394,0.002,66405.0,66404.0,0.76502504]
[1722418853796,0.002,66405.0,66404.0,1.06621104]
[1722418854932,0.002,66405.0,66404.0,1.37739704]
[1722418855142,0.002,66405.0,66404.0,1.51354709]
[1722418855347,0.001,66405.0,66404.0,1.51354709]
[1722418855551,0.001,66405.0,66404.0,1.65054709]
[1722418855724,0.00091299,66421.0,66418.0,0.150561]
[1722418855980,0.00091299,66421.0,66414.0,0.30114]
[1722418855981,0.00091299,66421.0,66420.0,0.44239004]
[1722418856129,0.04503291,66429.0,66425.0,0.0603]
[1722418856332,0.0015542,66428.0,66426.0,0.22893304]
[1722418856764,0.04503291,66431.0,66426.0,0.22893304]
[1722418856980,0.04503319,66431.0,66426.0,0.22893304]
[1722418857187,0.04586319,66432.0,66426.0,0.22893304]
[1722418857387,0.00083,66432.0,66426.0,0.22893304]
[1722418857616,0.151361,66432.0,66426.0,0.22893304]
[1722418857770,0.150534,66430.0,66426.0,0.22893304]
[1722418858082,0.00083,66432.0,66426.0,0.22893304]
[1722418858289,0.150532,66431.0,66426.0,0.22893304]
[1722418859104,0.150532,66431.0,66426.0,0.25693304]
[1722418859458,0.00103207,66430.0,66426.0,0.25693304]
[1722418859695,0.00103207,66430.0,66426.0,0.24293304]
[1722418859910,0.151359,66432.0,66426.0,0.24293304]
[1722418860100,0.151359,66432.0,66426.0,0.25593304]
[1722418860101,0.00085617,66431.0,66426.0,0.25593304]
[1722418860436,0.150534,66430.0,66426.0,0.25593304]
[1722418860678,0.15138817,66431.0,66426.0,0.24193304]
[1722418860907,0.150532,66431.0,66426.0,0.25593304]
[1722418861135,0.00083,66432.0,66426.0,0.25593304]
[1722418861354,0.00083,66432.0,66430.0,0.150533]
[1722418861520,0.00083,66432.0,66431.0,0.15063304]
[1722418862968,0.00083,66432.0,66431.0,0.16263304]
[1722418863161,0.00083,66432.0,66431.0,0.32716504]
[1722418863425,0.00083,66432.0,66431.0,0.31316504]
[1722418863635,0.00083,66432.0,66431.0,1.05609304]
[1722418863816,0.00083,66432.0,66431.0,1.38515704]
[1722418864176,0.00083,66432.0,66431.0,1.08409304]
[1722418864586,0.00083,66432.0,66431.0,0.78302904]
[1722418865004,0.00083,66432.0,66431.0,1.08409304]
[1722418865214,0.00083,66432.0,66431.0,1.07409304]
[1722418865436,0.00083,66432.0,66431.0,1.08409304]
[1722418868152,0.00083,66432.0,66431.0,0.77302904]
[1722418868364,0.00083,66432.0,66431.0,0.47196504]
[1722418868575,0.00083,66432.0,66431.0,0.77302904]
[1722418871376,0.00083,66432.0,66431.0,0.47196504]
[1722418871583,0.00083,66432.0,66431.0,0.77302904]
[1722418873001,0.00083,66432.0,66431.0,1.07409304]
[1722418873586,0.00083,66432.0,66431.0,0.77302904]
[1722418874433,0.00083,66432.0,66431.0,0.78151904]
[1722418877686,0.00083,66432.0,66431.0,0.26882304]
[1722418879081,0.00083,66432.0,66431.0,0.41935504]
[1722418880623,0.00083,66432.0,66431.0,0.72041904]
[1722418882139,0.00033988,66433.0,66431.0,0.72041904]
[1722418882341,0.00033988,66433.0,66432.0,0.150529]
[1722418882558,0.00033988,66433.0,66432.0,0.30116204]
[1722418884303,0.00033988,66433.0,66432.0,0.31516204]
[1722418884506,0.00033988,66433.0,66432.0,0.61622104]
[1722418884863,0.00033988,66433.0,66432.0,0.16463304]
[1722418885072,0.00033988,66433.0,66432.0,0.17863304]
[1722418885785,0.15086688,66433.0,66432.0,0.17863304]
[1722418885996,0.45192188,66433.0,66432.0,0.17863304]
[1722418886713,0.15086688,66433.0,66432.0,0.17863304]
[1722418886955,0.00033988,66433.0,66432.0,0.17863304]
[1722418887207,0.15086688,66433.0,66432.0,0.17863304]
[1722418888592,0.00033988,66433.0,66432.0,0.17863304]
[1722418891666,0.00033988,66433.0,66432.0,0.30374719]
[1722418891902,0.00033988,66433.0,66432.0,0.17863304]
[1722418893670,0.00145145,66433.0,66432.0,0.17863304]
[1722418893912,0.00033988,66433.0,66432.0,0.17863304]
[1722418895472,0.00033988,66433.0,66432.0,0.30374462]
[1722418896447,0.00033988,66433.0,66432.0,0.30374524]
[1722418897161,0.00033988,66433.0,66432.0,0.17863304]
[1722418897407,0.00033988,66433.0,66432.0,0.3037457]
[1722418897656,0.00033988,66433.0,66432.0,0.17863304]
[1722418898135,0.00033988,66433.0,66432.0,0.17954604]
[1722418898373,0.00033988,66433.0,66432.0,0.3046564]
[1722418898836,0.00033988,66433.0,66432.0,0.30465642]
[1722418899548,0.00033988,66433.0,66432.0,0.3046573]
[1722418900040,0.00033988,66433.0,66432.0,0.3046565]
[1722418902345,0.00033988,66433.0,66432.0,0.30465638]
[1722418902721,0.00033988,66433.0,66432.0,0.17954604]
[1722418906087,0.00033988,66433.0,66432.0,0.25504604]
[1722418906443,0.04552956,66433.0,66432.0,0.25504604]
[1722418907297,0.06812441,66433.0,66432.0,0.25504604]
[1722418907466,0.00033988,66433.0,66432.0,0.17954604]
[1722418907682,0.0012096,66433.0,66432.0,0.17954604]
[1722418907888,0.00033988,66433.0,66432.0,0.17954604]
[1722418908620,0.09071925,66433.0,66432.0,0.17954604]
[1722418908803,0.81587688,66433.0,66432.0,0.17954604]
[1722418909579,1.14918866,66433.0,66432.0,0.17954604]
[1722418909823,0.84813366,66433.0,66432.0,0.17954604]
[1722418910523,1.14918866,66433.0,66432.0,0.17954604]
[1722418911195,1.11693188,66433.0,66432.0,0.17954604]
[1722418911399,1.14887695,66433.0,66432.0,0.17954604]
[1722418911676,1.28449891,66433.0,66432.0,0.17954604]
[1722418912428,1.14887695,66433.0,66432.0,0.17954604]
[1722418913363,1.17921414,66433.0,66432.0,0.17954604]
[1722418915733,1.14807302,66433.0,66432.0,0.17954604]
[1722418915933,1.26585905,66433.0,66432.0,0.17954604]
[1722418917561,1.26593695,66433.0,66432.0,0.17954604]
[1722418918007,1.23479581,66433.0,66432.0,0.17954604]
[1722418918955,1.24384259,66433.0,66432.0,0.17954604]
[1722418919522,1.24403324,66433.0,66432.0,0.17954604]
[1722418920604,0.94297824,66433.0,66432.0,0.17954604]
[1722418922534,0.91122366,66433.0,66432.0,0.17954604]
[1722418922748,1.21227866,66433.0,66432.0,0.17954604]
[1722418922950,1.21227866,66433.0,66432.0,0.028913]
[1722418923184,1.24488619,66433.0,66432.0,0.028913]
[1722418924479,1.24470502,66433.0,66432.0,0.028913]
[1722418925324,1.15840502,66433.0,66432.0,0.028913]
[1722418925532,0.94365002,66433.0,66432.0,0.028913]
[1722418925956,0.91104249,66433.0,66432.0,0.028913]
[1722418926160,0.94344293,66433.0,66432.0,0.028913]
[1722418926399,0.94344293,66433.0,66432.0,0.17954604]
[1722418926400,0.78519615,66433.0,66432.0,0.17954604]
[1722418926611,0.83909571,66433.0,66432.0,0.17954604]
[1722418926782,0.53804071,66433.0,66432.0,0.17954604]
[1722418926986,0.65093599,66433.0,66432.0,0.17954604]
[1722418927205,0.53804071,66433.0,66432.0,0.17954604]
[1722418927407,0.65093777,66433.0,66432.0,0.17954604]
[1722418928056,0.83909571,66433.0,66432.0,0.17954604]
[1722418928269,0.53804071,66433.0,66432.0,0.17954604]
[1722418928470,0.95199831,66433.0,66432.0,0.17954604]
[1722418928807,0.83909571,66433.0,66432.0,0.17954604]
[1722418932111,0.83909571,66433.0,66432.0,0.17908193]
[1722418934628,0.87152586,66433.0,66432.0,0.17908193]
[1722418934802,0.83909571,66433.0,66432.0,0.17908193]
[1722418935683,0.87120384,66433.0,66432.0,0.17908193]
[1722418935900,0.8712035,66433.0,66432.0,0.17908193]
[1722418936095,1.1722585,66433.0,66432.0,0.17908193]
[1722418936252,0.8712035,66433.0,66432.0,0.17908193]
[1722418938975,1.1722585,66433.0,66432.0,0.17908193]
[1722418939229,0.83909571,66433.0,66432.0,0.17908193]
[1722418939415,0.870996,66433.0,66432.0,0.17908193]
[1722418942457,0.83909571,66433.0,66432.0,0.17908193]
[1722418942663,0.87097193,66433.0,66432.0,0.17908193]
[1722418943995,1.17202693,66433.0,66432.0,0.17908193]
[1722418944749,0.87097193,66433.0,66432.0,0.17908193]
[1722418945580,1.17202693,66433.0,66432.0,0.17908193]
[1722418946064,1.17184318,66433.0,66432.0,0.17908193]
[1722418946280,1.3098432,66433.0,66432.0,0.02844889]
[1722418946697,1.63553297,66433.0,66432.0,0.02844889]
[1722418946900,1.70273447,66433.0,66432.0,0.02844889]
[1722418947239,1.6780997,66433.0,66432.0,0.02844889]
[1722418947678,1.6780997,66433.0,66432.0,0.014913]
[1722418947941,1.6780997,66433.0,66432.0,0.016913]
[1722418948276,1.6780997,66433.0,66432.0,0.002913]
[1722418948653,1.6780997,66433.0,66432.0,0.003913]
[1722418949304,1.67822417,66433.0,66432.0,0.003913]
[1722418949830,1.61102336,66433.0,66432.0,0.003913]
[1722418950755,1.67450855,66433.0,66432.0,0.003913]
[1722418950904,1.68354329,66433.0,66432.0,0.003913]
[1722418951112,1.6200581,66433.0,66432.0,0.003913]
[1722418952542,1.61989636,66433.0,66432.0,0.003913]
[1722418956046,1.62016483,66433.0,66432.0,0.003913]
[1722418959461,1.31914888,66433.0,66432.0,0.003913]
[1722418960069,1.62020388,66433.0,66432.0,0.003913]
[1722418960279,1.62022957,66433.0,66432.0,0.003913]
[1722418961975,1.31917457,66433.0,66432.0,0.003913]
[1722418962971,1.31893283,66433.0,66432.0,0.003913]
[1722418966377,1.58824045,66433.0,66432.0,0.003913]
[1722418966581,1.31881298,66433.0,66432.0,0.003913]
[1722418967505,1.24121298,66433.0,66432.0,0.003913]
[1722418967701,1.18081298,66433.0,66432.0,0.085113]
[1722418968139,1.01510656,66433.0,66432.0,0.085113]
[1722418969594,0.84813045,66433.0,66432.0,0.085113]
[1722418969861,1.01541103,66433.0,66432.0,0.085113]
[1722418970068,0.88004779,66433.0,66432.0,0.085113]
[1722418970759,0.88004779,66433.0,66432.0,0.23574604]
[1722418970760,0.00015871,66433.0,66432.0,0.23574604]
[1722418970965,0.00015871,66433.0,66432.0,0.29794604]
[1722418970966,0.20082046,66433.0,66432.0,0.29794604]
[1722418971171,0.17826102,66433.0,66432.0,0.29794604]
[1722418971399,0.08645871,66433.0,66432.0,0.29794604]
[1722418971774,0.08741542,66433.0,66432.0,0.29794604]
[1722418971979,0.08645871,66433.0,66432.0,0.29694604]
[1722418972320,0.00015871,66433.0,66432.0,0.29494604]
[1722418972545,0.00015871,66433.0,66432.0,0.45947504]
[1722418972965,0.00015871,66433.0,66432.0,0.47347504]
[1722418973409,0.00107203,66433.0,66432.0,0.47347504]
[1722418973620,0.04619317,66433.0,66432.0,0.47347504]
[1722418974577,0.00015871,66433.0,66432.0,0.47347504]
[1722418974775,0.00171291,66433.0,66432.0,0.47347504]
[1722418974978,0.06939656,66433.0,66432.0,0.47347504]
[1722418975190,0.06784236,66433.0,66432.0,0.47347504]
[1722418976211,0.00015871,66433.0,66432.0,0.47347504]
[1722418976433,0.04527856,66433.0,66432.0,0.47347504]
[1722418977179,0.04683276,66433.0,66432.0,0.47347504]
[1722418977545,0.04683276,66433.0,66432.0,0.32294604]
[1722418977701,0.04683276,66433.0,66432.0,0.47347504]
[1722418978336,0.04683276,66433.0,66432.0,0.32294604]
[1722418978546,0.00015871,66433.0,66432.0,0.32294604]
[1722418978758,0.00123552,66433.0,66432.0,0.32294604]
[1722418978963,0.06783351,66433.0,66432.0,0.32294604]
[1722418979162,0.06783449,66433.0,66432.0,0.32294604]
[1722418979542,0.00015871,66433.0,66432.0,0.32294604]
[1722418979744,0.04527382,66433.0,66432.0,0.32294604]
[1722418980567,0.00015871,66433.0,66432.0,0.32294604]
[1722418981113,0.04527154,66433.0,66432.0,0.32294604]
[1722418981630,0.067829,66433.0,66432.0,0.32294604]
[1722418982033,0.04527154,66433.0,66432.0,0.32294604]
[1722418982274,0.067829,66433.0,66432.0,0.32294604]
[1722418982858,0.00015871,66433.0,66432.0,0.32294604]
[1722418983054,0.04526802,66433.0,66432.0,0.32294604]
[1722418983472,0.00015871,66433.0,66432.0,0.32294604]
[1722418983674,0.00171291,66433.0,66432.0,0.32294604]
[1722418983875,0.00015871,66433.0,66432.0,0.32294604]
[1722418984279,0.06782145,66433.0,66432.0,0.32294604]
[1722418984513,0.00015871,66433.0,66432.0,0.32294604]
[1722418984719,0.06915571,66433.0,66432.0,0.32294604]
[1722418984917,0.04659929,66433.0,66432.0,0.32294604]
[1722418985320,0.04526503,66433.0,66432.0,0.32294604]
[1722418985518,0.06781994,66433.0,66432.0,0.32294604]
[1722418985725,0.00015871,66433.0,66432.0,0.32294604]
[1722418985943,0.04609689,66433.0,66432.0,0.32294604]
[1722418986122,0.04526407,66433.0,66432.0,0.32294604]
[1722418986318,0.04526355,66433.0,66432.0,0.32294604]
[1722418986888,0.00015871,66433.0,66432.0,0.32294604]
[1722418987624,0.06781597,66433.0,66432.0,0.32294604]
[1722418987825,0.06781597,66433.0,66432.0,0.110113]
[1722418987826,0.51829491,66433.0,66432.0,0.110113]
[1722418988030,0.81934991,66433.0,66432.0,0.028913]
[1722418988588,0.81779571,66433.0,66432.0,0.028913]
[1722418989666,0.75279571,66433.0,66432.0,0.028913]
[1722418991093,0.86555781,66433.0,66432.0,0.028913]
[1722418991516,0.75279571,66433.0,66432.0,0.028913]
[1722418991915,0.7543361,66433.0,66432.0,0.028913]
[1722418992145,0.86555781,66433.0,66432.0,0.028913]
[1722418992404,0.83909571,66433.0,66432.0,0.028913]
[1722418993530,0.98582853,66433.0,66432.0,0.028913]
[1722418993764,0.83909571,66433.0,66432.0,0.028913]
[1722418994640,0.84064991,66433.0,66432.0,0.028913]
[1722418995319,0.83909571,66433.0,66432.0,0.028913]
[1722418995493,0.87148613,66433.0,66432.0,0.028913]
[1722418996281,0.87173252,66433.0,66432.0,0.028913]
[1722418998190,0.98450262,66433.0,66432.0,0.028913]
[1722418999419,0.87173252,66433.0,66432.0,0.028913]
[1722418999654,0.87115378,66433.0,66432.0,0.028913]
[1722419003044,0.8712577,66433.0,66432.0,0.028913]
[1722419006402,0.87118619,66433.0,66432.0,0.028913]
[1722419009775,0.87119528,66433.0,66432.0,0.028913]
[1722419011531,1.00667191,66433.0,66432.0,0.028913]
[1722419011941,1.30772691,66433.0,66432.0,0.028913]
[1722419012818,1.17225028,66433.0,66432.0,0.028913]
[1722419013036,1.14015071,66433.0,66432.0,0.028913]
[1722419013192,1.17225738,66433.0,66432.0,0.028913]
[1722419016307,0.87120238,66433.0,66432.0,0.028913]
[1722419016502,0.87126256,66433.0,66432.0,0.028913]
[1722419019468,0.87131801,66433.0,66432.0,0.028913]
[1722419020509,0.87127224,66433.0,66432.0,0.028913]
[1722419022611,0.78497224,66433.0,66432.0,0.028913]
[1722419022810,0.87127224,66433.0,66432.0,0.109513]
[1722419023441,0.87150166,66433.0,66432.0,0.109513]
[1722419026840,0.87103871,66433.0,66432.0,0.109513]
[1722419030383,0.87103459,66433.0,66432.0,0.109513]
[1722419030582,0.86873318,66433.0,66432.0,0.109513]
[1722419031553,0.86956318,66433.0,66432.0,0.109513]
[1722419033679,0.86952601,66433.0,66432.0,0.109513]
[1722419034592,1.02221302,66433.0,66432.0,0.109513]
[1722419034981,0.86952601,66433.0,66432.0,0.109513]
[1722419037112,0.86945744,66433.0,66432.0,0.109513]
[1722419038475,1.02214614,66433.0,66432.0,0.109513]
[1722419039278,1.32320114,66433.0,66432.0,0.028913]
[1722419039482,1.30921244,66433.0,66432.0,0.028913]
[1722419039947,1.61026744,66433.0,66432.0,0.028913]
[1722419040301,1.5784343,66433.0,66432.0,0.028913]
[1722419040544,1.5784343,66433.0,66432.0,0.014913]
[1722419040545,1.69610106,66433.0,66432.0,0.014913]
[1722419040748,1.68610106,66433.0,66432.0,0.012913]
[1722419040899,1.69610106,66433.0,66432.0,0.012913]
[1722419041102,1.69610106,66433.0,66432.0,0.010913]
[1722419041313,1.68610106,66433.0,66432.0,0.010913]
[1722419041523,1.68610106,66433.0,66432.0,0.011913]
[1722419041706,1.68610106,66433.0,66432.0,0.000913]
[1722419041906,1.68610106,66433.0,66432.0,0.005913]
[1722419042393,1.68610106,66433.0,66432.0,0.000913]
[1722419042803,1.68610106,66433.0,66432.0,0.001913]
[1722419043645,1.68664082,66433.0,66432.0,0.001913]
[1722419044070,1.68664082,66433.0,66432.0,0.003913]
[1722419044387,1.68664082,66433.0,66432.0,0.001913]
[1722419044793,1.68664082,66433.0,66432.0,0.003913]
[1722419047035,1.68683816,66433.0,66432.0,0.002913]
[1722419050286,1.5784343,66433.0,66432.0,0.002913]
[1722419050508,1.6867537,66433.0,66432.0,0.002913]
[1722419051287,1.61501462,66433.0,66432.0,0.002913]
[1722419051492,1.68675424,66433.0,66432.0,0.002913]
[1722419052145,1.61501462,66433.0,66432.0,0.002913]
[1722419052350,1.68675361,66433.0,66432.0,0.002913]
[1722419053563,1.68591539,66433.0,66432.0,0.002913]
[1722419057009,1.5784343,66433.0,66432.0,0.002913]
[1722419057216,1.68695736,66433.0,66432.0,0.002913]
[1722419060499,1.68727344,66433.0,66432.0,0.002913]
[1722419060702,1.68727401,66433.0,66432.0,0.002913]
[1722419061422,1.46689875,66433.0,66432.0,0.002913]
[1722419062447,1.61742575,66433.0,66432.0,0.002913]
[1722419063665,1.580577,66433.0,66432.0,0.002913]
[1722419063867,1.6172837,66433.0,66432.0,0.002913]
[1722419067084,1.580577,66433.0,66432.0,0.002913]
[1722419067318,1.61741209,66433.0,66432.0,0.002913]
[1722419067518,1.053818,66425.0,66424.0,0.0788]
[1722419067715,1.17695309,66425.0,66424.0,0.0788]
[1722419068072,1.17695309,66425.0,66424.0,0.077149]
[1722419068830,1.17695309,66425.0,66424.0,0.088149]
[1722419070491,1.140118,66425.0,66424.0,0.098149]
[1722419070692,1.17702607,66425.0,66424.0,0.096618]
[1722419071660,1.31241567,66425.0,66424.0,0.096618]
[1722419072611,1.17702607,66425.0,66424.0,0.096618]
[1722419073802,1.140118,66425.0,66424.0,0.096618]
[1722419074006,1.17688074,66425.0,66424.0,0.096618]
[1722419076026,1.31231431,66425.0,66424.0,0.096618]
[1722419076226,1.17688074,66425.0,66424.0,0.096618]
[1722419077300,1.17683236,66425.0,66424.0,0.096618]
[1722419079012,1.18591711,66425.0,66424.0,0.096618]
[1722419080066,1.25231711,66425.0,66424.0,0.096618]
[1722419080297,1.40470229,66425.0,66424.0,0.096618]
[1722419080724,1.21560275,66425.0,66424.0,0.096618]
[1722419080933,1.4047953,66425.0,66424.0,0.096618]
[1722419081372,1.62525039,66425.0,66424.0,0.021]
[1722419081782,1.70515039,66425.0,66424.0,0.021]
[1722419082170,2.01624139,66425.0,66424.0,0.021]
[1722419082390,2.01624139,66425.0,66404.0,0.000913]
[1722419082391,1.054056,66410.0,66409.0,0.123836]
[1722419082589,1.054056,66410.0,66404.0,0.000913]
[1722419082590,0.75292,66408.0,66407.0,0.0635]
[1722419082911,1.17712024,66408.0,66407.0,0.0767]
[1722419084261,1.17712024,66408.0,66407.0,0.0867]
[1722419084907,1.17712024,66408.0,66407.0,0.01]
[1722419085292,1.17812024,66408.0,66407.0,0.018]
[1722419087207,1.141388,66408.0,66407.0,0.018]
[1722419087385,1.17773475,66408.0,66407.0,0.018]
[1722419087769,1.47890275,66408.0,66407.0,0.018]
[1722419087967,1.62959707,66408.0,66407.0,0.018]
[1722419088174,1.63118795,66408.0,66407.0,0.018]
[1722419088369,1.47890275,66408.0,66407.0,0.018]
[1722419090512,1.442556,66408.0,66407.0,0.018]
[1722419090752,1.47877861,66408.0,66407.0,0.018]
[1722419093878,1.47896672,66408.0,66407.0,0.018]
[1722419095316,1.48815585,66408.0,66407.0,0.018]
[1722419095660,1.63205585,66408.0,66407.0,0.018]
[1722419095796,1.71237371,66408.0,66407.0,0.018]
[1722419096218,2.01354171,66408.0,66407.0,0.018913]
[1722419096616,2.01254171,66408.0,66407.0,0.010913]
[1722419097101,1.63105585,66408.0,66407.0,0.002913]
[1722419097304,1.63106267,66408.0,66407.0,0.004913]
[1722419097963,1.63106267,66408.0,66407.0,0.104913]
[1722419099798,1.76605129,66408.0,66407.0,0.104913]
[1722419100057,1.63106267,66408.0,66407.0,0.104913]
[1722419100462,1.48716267,66408.0,66407.0,0.104913]
[1722419103850,1.45074513,66408.0,66407.0,0.104913]
[1722419104059,1.48695569,66408.0,66407.0,0.104913]
[1722419104486,1.48695569,66408.0,66407.0,0.251213]
[1722419104487,1.09948769,66408.0,66407.0,0.251213]
[1722419104686,1.18578769,66408.0,66407.0,0.251213]
[1722419104898,1.2982586,66408.0,66407.0,0.251213]
[1722419105128,1.2982586,66408.0,66407.0,0.185413]
[1722419107228,1.2119586,66408.0,66407.0,0.185413]
[1722419107753,1.27585308,66408.0,66407.0,0.185413]
[1722419108044,0.84840913,66408.0,66407.0,0.251713]
[1722419108289,0.84840913,66408.0,66407.0,0.40234604]
[1722419108535,0.88458964,66408.0,66407.0,0.40234604]
[1722419109013,0.88458964,66408.0,66407.0,0.40034604]
[1722419109266,0.88458964,66408.0,66407.0,0.39834604]
[1722419109513,0.88558964,66408.0,66407.0,0.40534604]
[1722419109919,0.88458964,66408.0,66407.0,0.39834604]
[1722419110119,0.88658964,66408.0,66407.0,0.41834604]
[1722419110322,0.58542164,66408.0,66407.0,0.41834604]
[1722419110535,0.54824113,66408.0,66407.0,0.41034604]
[1722419110742,0.58429931,66408.0,66407.0,0.41034604]
[1722419110947,0.88646731,66408.0,66407.0,0.42234604]
[1722419111150,1.18763531,66408.0,66407.0,0.42234604]
[1722419111589,1.25513659,66408.0,66407.0,0.42234604]
[1722419111993,1.18763531,66408.0,66407.0,0.42234604]
[1722419112916,1.23265954,66408.0,66407.0,0.42234604]
[1722419113120,1.18763531,66408.0,66407.0,0.42234604]
[1722419113355,1.25513659,66408.0,66407.0,0.271713]
[1722419113561,1.18763531,66408.0,66407.0,0.205413]
[1722419113742,1.27781355,66408.0,66407.0,0.205413]
[1722419115487,0.97664555,66408.0,66407.0,0.205413]
[1722419115686,0.88658749,66408.0,66407.0,0.205413]
[1722419115896,0.95414274,66408.0,66407.0,0.41984604]
[1722419116862,0.08322335,66408.0,66407.0,0.41984604]
[1722419117068,0.002,66408.0,66407.0,0.72101904]
[1722419117264,0.002,66408.0,66407.0,1.18277804]
[1722419118160,0.002,66408.0,66407.0,1.17077804]
[1722419118161,0.001,66408.0,66407.0,1.17077804]
[1722419118374,0.002,66408.0,66407.0,1.18477804]
[1722419119225,0.001,66408.0,66407.0,1.17277804]